bitfinex/quotes_BTCUSD_20250109
["timestamp","ask_amount","ask_price","bid_price","bid_amount"]
[1736423936908,0.001,93622.0,93617.0,0.0815]
[1736423937603,0.001,93622.0,93619.0,0.0815]
[1736423937808,0.001,93622.0,93621.0,0.0785]
[1736423939061,0.001,93622.0,93621.0,0.341127]
[1736423939479,0.001,93622.0,93621.0,0.1275]
[1736423940100,0.001,93622.0,93621.0,0.1295]
[1736423940299,0.002,93622.0,93621.0,0.1355]
[1736423941572,0.15,93630.0,93621.0,0.1355]
[1736423941772,0.213609,93629.0,93621.0,0.1355]
[1736423941983,0.213609,93629.0,93622.0,0.0763]
[1736423942242,0.16054312,93630.0,93622.0,0.0763]
[1736423943590,0.213609,93629.0,93622.0,0.0763]
[1736423943783,0.213609,93629.0,93622.0,0.0793]
[1736423944168,0.2136623,93629.0,93622.0,0.0793]
[1736423945279,0.2136623,93629.0,93622.0,0.0783]
[1736423945487,5.33e-05,93629.0,93622.0,0.291922]
[1736423945675,5.33e-05,93629.0,93623.0,0.0773]
[1736423946797,5.33e-05,93629.0,93624.0,0.21362]
[1736423947014,5.33e-05,93629.0,93626.0,0.0773]
[1736423947443,5.33e-05,93629.0,93628.0,0.290911]
[1736423947680,0.0010533,93629.0,93628.0,0.39521076]
[1736423947886,5.33e-05,93629.0,93628.0,0.39521076]
[1736423948308,0.0010533,93629.0,93628.0,0.18159976]
[1736423948720,0.0010533,93629.0,93628.0,0.18266768]
[1736423949330,0.0010533,93629.0,93628.0,0.39627868]
[1736423949540,0.0010533,93629.0,93628.0,0.39521076]
[1736423949541,5.33e-05,93629.0,93628.0,0.39521076]
[1736423950188,0.0010533,93629.0,93628.0,0.40421076]
[1736423950397,0.0010533,93629.0,93628.0,0.77881076]
[1736423950606,0.0010533,93629.0,93628.0,0.78281076]
[1736423955477,0.213567,93647.0,93629.0,0.0784]
[1736423955683,0.15,93648.0,93631.0,0.0765]
[1736423955822,0.213571,93646.0,93632.0,0.16979193]
[1736423956025,0.213571,93646.0,93632.0,0.10536761]
[1736423956229,0.213571,93646.0,93633.0,0.0811]
[1736423956434,0.213571,93646.0,93634.0,0.10429976]
[1736423958066,0.213571,93646.0,93634.0,0.10629976]
[1736423958700,0.213571,93646.0,93634.0,0.10284262]
[1736423959934,0.427142,93646.0,93634.0,0.10284262]
[1736423960142,0.427142,93646.0,93634.0,0.10384262]
[1736423962395,0.213571,93646.0,93634.0,0.10384262]
[1736423964664,0.15,93647.0,93634.0,0.10384262]
[1736423965639,0.15,93647.0,93634.0,0.10284262]
[1736423965860,0.21357,93646.0,93634.0,0.10284262]
[1736423966086,0.21357,93646.0,93634.0,0.10184262]
[1736423966528,0.21357,93646.0,93634.0,0.10284262]
[1736423966756,0.21357,93646.0,93634.0,0.10184262]
[1736423966956,0.21357,93646.0,93634.0,0.10384262]
[1736423967633,0.42714,93646.0,93634.0,0.10384262]
[1736423968239,0.213579,93643.0,93634.0,0.10384262]
[1736423968393,0.213579,93643.0,93634.0,0.10284262]
[1736423969018,0.213579,93643.0,93634.0,0.10384262]
[1736423969251,0.213579,93643.0,93634.0,0.10184262]
[1736423969453,0.43,93642.0,93634.0,0.10184262]
[1736423969789,0.204,93642.0,93634.0,0.10384262]
[1736423970001,0.213579,93643.0,93634.0,0.10484262]
[1736423970413,0.213579,93643.0,93634.0,0.10184262]
[1736423970616,0.21357,93646.0,93634.0,0.31543862]
[1736423970948,0.363568,93647.0,93635.0,0.0775]
[1736423971126,0.213575,93644.0,93635.0,0.0775]
[1736423972130,0.213575,93644.0,93635.0,0.17667926]
[1736423972488,0.213575,93644.0,93635.0,0.0775]
[1736423973099,0.213575,93644.0,93635.0,0.0785]
[1736423973295,0.363568,93647.0,93635.0,0.0785]
[1736423973296,0.15,93647.0,93635.0,0.0785]
[1736423973505,0.01075312,93649.0,93635.0,0.0785]
[1736423973506,0.213582,93641.0,93635.0,0.0805]
[1736423974454,0.213582,93641.0,93635.0,0.0785]
[1736423975052,0.213582,93641.0,93635.0,0.0775]
[1736423975257,0.21357,93646.0,93635.0,0.0785]
[1736423975658,0.21357,93646.0,93636.0,0.043393]
[1736423976064,0.213578,93643.0,93635.0,0.0795]
[1736423976446,0.213578,93643.0,93635.0,0.0815]
[1736423976642,0.213578,93643.0,93635.0,0.0775]
[1736423976848,0.21357,93646.0,93635.0,0.0775]
[1736423977074,0.213572,93645.0,93636.0,0.003]
[1736423977243,0.213572,93645.0,93636.0,0.001]
[1736423977431,0.427144,93645.0,93636.0,0.001]
[1736423978406,0.427144,93645.0,93635.0,0.0805]
[1736423978767,0.427144,93645.0,93635.0,0.0815]
[1736423979133,0.427144,93645.0,93635.0,0.0805]
[1736423979352,0.213572,93645.0,93635.0,0.0805]
[1736423979557,0.213572,93645.0,93636.0,0.001]
[1736423979778,0.427144,93645.0,93636.0,0.001]
[1736423980098,0.427144,93645.0,93636.0,0.002]
[1736423980254,0.427144,93645.0,93635.0,0.0785]
[1736423980661,0.427144,93645.0,93635.0,0.0805]
[1736423980868,0.01075312,93649.0,93636.0,0.02878226]
[1736423981275,0.15,93647.0,93636.0,0.03078226]
[1736423981477,0.21357,93646.0,93636.0,0.02878226]
[1736423981843,0.213565,93648.0,93636.0,0.02878226]
[1736423982014,0.213565,93648.0,93637.0,0.04283649]
[1736423982637,0.213573,93645.0,93637.0,0.04283649]
[1736423983400,0.213573,93645.0,93635.0,0.0775]
[1736423983401,0.213573,93645.0,93635.0,0.0795]
[1736423983613,0.213573,93645.0,93637.0,0.001]
[1736423984193,0.213573,93645.0,93637.0,0.006]
[1736423984908,0.213573,93645.0,93637.0,0.001]
[1736423985313,0.213573,93645.0,93634.0,0.00106785]
[1736423985829,0.213573,93645.0,93637.0,0.002]
[1736423986253,0.213565,93648.0,93637.0,0.002]
[1736423986456,0.213565,93648.0,93634.0,0.213597]
[1736423986658,0.213565,93648.0,93634.0,0.10022902]
[1736423986838,0.213573,93645.0,93637.0,0.004]
[1736423987245,0.213573,93645.0,93634.0,0.002]
[1736423987457,0.213573,93645.0,93637.0,0.003]
[1736423987994,0.213573,93645.0,93632.0,0.2136]
[1736423988273,0.213573,93645.0,93637.0,0.004]
[1736423988692,0.213565,93648.0,93637.0,0.004]
[1736423989641,0.213565,93648.0,93635.0,0.0756]
[1736423990074,0.213565,93648.0,93637.0,0.001]
[1736423990472,0.213565,93648.0,93635.0,0.0756]
[1736423990681,0.01075312,93649.0,93631.0,0.19178534]
[1736423990682,2.42624076,93647.0,93631.0,0.19178534]
[1736423990889,0.213602,93632.0,93631.0,0.19178534]
[1736423991098,0.213602,93632.0,93628.0,0.23973167]
[1736423991099,2.385543,93632.0,93628.0,0.23973167]
[1736423991310,0.213606,93630.0,93628.0,0.23973167]
[1736423991727,2.171941,93629.0,93628.0,0.23973167]
[1736423992325,0.427222,93628.0,93616.0,0.0494]
[1736423992940,0.213619,93625.0,93616.0,0.0494]
[1736423993143,0.213611,93628.0,93616.0,0.0494]
[1736423993543,0.213621,93624.0,93616.0,0.0514]
[1736423993924,0.213621,93624.0,93616.0,0.0504]
[1736423994129,0.213621,93624.0,93616.0,0.0544]
[1736423994691,0.213621,93624.0,93616.0,0.0494]
[1736423994917,0.213621,93624.0,93616.0,0.0534]
[1736423995973,0.213621,93624.0,93616.0,0.19844582]
[1736423996186,0.21363,93620.0,93616.0,0.19844582]
[1736423996803,0.21363,93620.0,93616.0,0.006]
[1736423997203,0.213625,93622.0,93614.0,4e-07]
[1736423997493,0.213625,93622.0,93616.0,0.002]
[1736423998305,0.213625,93622.0,93616.0,0.001]
[1736423999081,0.213625,93622.0,93614.0,5.37e-05]
[1736423999394,0.213622,93623.0,93616.0,0.001]
[1736423999797,0.213631,93620.0,93614.0,0.0010537]
[1736424000044,0.213631,93620.0,93614.0,5.37e-05]
[1736424000283,0.213631,93620.0,93614.0,0.001]
[1736424000429,0.213631,93620.0,93614.0,0.003]
[1736424000643,0.213631,93620.0,93611.0,0.0001704]
[1736424000905,0.213622,93623.0,93611.0,0.0001704]
[1736424000906,0.22221452,93623.0,93612.0,0.213647]
[1736424001109,0.22221452,93623.0,93614.0,0.004]
[1736424002505,0.22221452,93623.0,93614.0,0.003]
[1736424002966,0.15,93630.0,93614.0,0.003]
[1736424003183,0.15,93630.0,93623.0,0.213622]
[1736424003184,5.332e-05,93627.0,93623.0,0.213622]
[1736424003592,0.213618,93625.0,93614.0,0.003]
[1736424003796,0.0805,93626.0,93614.0,0.003]
[1736424003797,0.213637,93617.0,93614.0,0.001]
[1736424004023,0.21364,93615.0,93614.0,0.001]
[1736424004235,2.611881,93615.0,93614.0,0.001]
[1736424004434,0.363645,93613.0,93612.0,0.001]
[1736424004651,0.15,93612.0,93611.0,0.0001704]
[1736424004865,2.321941,93612.0,93611.0,0.0001704]
[1736424005314,0.483,93612.0,93611.0,0.0001704]
[1736424005519,0.00836845,93613.0,93611.0,0.0001704]
[1736424005725,0.01236845,93613.0,93611.0,0.0001704]
[1736424005934,0.15,93614.0,93611.0,0.0001704]
[1736424006168,0.213633,93619.0,93611.0,0.0001704]
[1736424006375,0.00821362,93619.0,93611.0,0.0001704]
[1736424006607,0.22184662,93619.0,93611.0,0.0001704]
[1736424006812,0.213633,93619.0,93611.0,0.0001704]
[1736424007229,0.427266,93619.0,93611.0,0.0001704]
[1736424007442,0.213633,93619.0,93611.0,0.0001704]
[1736424007666,0.213634,93618.0,93611.0,0.0001704]
[1736424008345,0.213643,93614.0,93611.0,0.0001704]
[1736424008560,0.213647,93612.0,93611.0,0.0001704]
[1736424008766,2.385588,93612.0,93611.0,0.0001704]
[1736424010861,1.622647,93612.0,93611.0,0.0001704]
[1736424011079,0.505647,93612.0,93611.0,0.0001704]
[1736424011284,0.213636,93617.0,93611.0,0.0001704]
[1736424011723,0.213627,93621.0,93612.0,0.213647]
[1736424011941,0.213627,93621.0,93611.0,0.2138184]
[1736424012149,0.001,93612.0,93611.0,0.0001704]
[1736424012358,0.213637,93617.0,93611.0,0.0001704]
[1736424012955,0.216637,93617.0,93611.0,0.0001704]
[1736424013216,0.213637,93617.0,93611.0,0.0001704]
[1736424013425,0.214637,93617.0,93611.0,0.0001704]
[1736424013641,0.213645,93613.0,93611.0,0.0001704]
[1736424014292,0.10429976,93612.0,93611.0,0.0011704]
[1736424014504,2.27624076,93612.0,93611.0,0.0011704]
[1736424014706,2.27624076,93612.0,93611.0,0.0001704]
[1736424014913,2.27724076,93612.0,93611.0,0.0001704]
[1736424015137,2.27624076,93612.0,93611.0,0.0001704]
[1736424015586,2.27624076,93612.0,93611.0,0.0031704]
[1736424015796,2.27624076,93612.0,93611.0,0.0001704]
[1736424016005,2.28124076,93612.0,93611.0,0.0011704]
[1736424016443,2.27624076,93612.0,93611.0,0.0001704]
[1736424016864,2.28124076,93612.0,93611.0,0.0001704]
[1736424017067,2.28124076,93612.0,93611.0,0.0011704]
[1736424017681,2.2896415,93612.0,93611.0,0.0001704]
[1736424017913,2.2906415,93612.0,93611.0,0.0001704]
[1736424019056,1.4887005,93612.0,93611.0,0.0001704]
[1736424019260,0.01440074,93612.0,93611.0,0.0001704]
[1736424019506,0.29740074,93612.0,93611.0,0.0001704]
[1736424020083,0.29140074,93612.0,93611.0,0.0001704]
[1736424020447,0.29240074,93612.0,93611.0,0.0001704]
[1736424021520,0.29640074,93612.0,93611.0,0.0001704]
[1736424021741,0.4760005,93612.0,93611.0,0.0001704]
[1736424022143,0.29640074,93612.0,93611.0,0.0001704]
[1736424023135,0.005,93612.0,93611.0,0.0001704]
[1736424024700,2.176941,93612.0,93611.0,0.0001704]
[1736424025721,0.005,93612.0,93611.0,0.0001704]
[1736424026155,2.176941,93612.0,93611.0,0.0001704]
[1736424030940,1.704,93612.0,93611.0,0.0001704]
[1736424031564,0.68,93612.0,93611.0,0.0001704]
[1736424031906,0.393,93612.0,93611.0,0.0001704]
[1736424033704,0.361,93612.0,93611.0,0.0001704]
[1736424033939,0.36,93612.0,93611.0,0.0001704]
[1736424034577,0.361,93612.0,93611.0,0.0001704]
[1736424035193,0.357,93612.0,93611.0,0.0001704]
[1736424035377,1.03022806,93612.0,93611.0,0.0001704]
[1736424035621,1.18151903,93612.0,93611.0,0.0001704]
[1736424036753,1.17751903,93612.0,93611.0,0.0001704]
[1736424037165,1.18651903,93612.0,93611.0,0.0011704]
[1736424037366,1.18551903,93612.0,93611.0,0.0011704]
[1736424037572,1.20851903,93612.0,93611.0,0.0011704]
[1736424037776,1.21151903,93612.0,93611.0,0.0011704]
[1736424038143,0.490682,93597.0,93564.0,0.0785]
[1736424038335,3.24895206,93597.0,93564.0,0.0785]
[1736424039356,0.15,93596.0,93564.0,0.0785]
[1736424039497,0.363695,93591.0,93590.0,0.00022034]
[1736424039702,2.71753576,93591.0,93590.0,0.00022034]
[1736424040910,0.1,93587.0,93562.0,0.0467]
[1736424041090,3.22205126,93587.0,93562.0,0.0467]
[1736424041310,3.23879975,93587.0,93562.0,0.0467]
[1736424041509,3.31639975,93587.0,93562.0,0.0467]
[1736424041898,3.31639975,93587.0,93558.0,0.0004852]
[1736424042326,3.32139975,93587.0,93558.0,0.0004852]
[1736424042722,3.38849975,93587.0,93558.0,0.0004852]
[1736424042922,3.38849975,93587.0,93576.0,0.00014988]
[1736424042923,0.3276,93577.0,93576.0,0.00014988]
[1736424043140,3.08596146,93577.0,93576.0,0.00014988]
[1736424043584,3.10271237,93577.0,93576.0,0.00014988]
[1736424043793,3.31643937,93577.0,93576.0,0.00014988]
[1736424044927,3.29968846,93577.0,93576.0,0.00014988]
[1736424045155,3.30870431,93577.0,93576.0,0.00014988]
[1736424045332,3.31470431,93577.0,93576.0,0.00014988]
[1736424046170,3.31670431,93577.0,93576.0,0.00014988]
[1736424047176,3.23910431,93577.0,93576.0,0.00014988]
[1736424047382,2.75698361,93577.0,93576.0,0.00014988]
[1736424049043,2.20074285,93577.0,93576.0,0.00014988]
[1736424049263,0.54801585,93577.0,93576.0,0.04764988]
[1736424049468,0.008,93577.0,93576.0,0.04764988]
[1736424049644,0.008,93577.0,93576.0,0.26137988]
[1736424050089,0.008,93577.0,93576.0,0.04764988]
[1736424050325,0.008,93577.0,93576.0,0.26137988]
[1736424051128,0.008,93577.0,93576.0,0.04764988]
[1736424051466,0.006,93577.0,93576.0,0.04764988]
[1736424051935,0.213726,93578.0,93576.0,0.04764988]
[1736424052132,0.001,93577.0,93576.0,0.04764988]
[1736424052351,2.172941,93577.0,93576.0,0.00014988]
[1736424052559,2.171941,93577.0,93576.0,0.00014988]
[1736424052794,2.172941,93577.0,93576.0,0.00214988]
[1736424053000,2.172941,93577.0,93576.0,0.00414988]
[1736424053214,0.213726,93578.0,93576.0,0.00214988]
[1736424053421,0.001,93577.0,93576.0,0.00414988]
[1736424053867,0.213726,93578.0,93576.0,0.00214988]
[1736424054735,0.213726,93578.0,93576.0,0.00014988]
[1736424055375,0.001,93577.0,93576.0,0.00014988]
[1736424055745,0.427441,93580.0,93576.0,0.00014988]
[1736424056563,0.21372,93580.0,93576.0,0.00014988]
[1736424057310,0.21472,93580.0,93576.0,0.00014988]
[1736424058956,0.001,93580.0,93578.0,0.0471]
[1736424059119,0.001,93580.0,93578.0,0.26189349]
[1736424059332,0.001,93580.0,93578.0,0.260825]
[1736424059953,0.00907652,93590.0,93578.0,0.260825]
[1736424060161,0.15,93592.0,93578.0,0.47455]
[1736424060383,0.213684,93596.0,93579.0,0.00106848]
[1736424060384,0.001,93580.0,93579.0,0.00106848]
[1736424061249,0.001,93580.0,93578.0,0.260825]
[1736424061410,0.001,93580.0,93578.0,0.0471]
[1736424062023,0.001,93580.0,93579.0,0.213723]
[1736424062229,0.213702,93589.0,93579.0,0.213723]
[1736424062615,0.001,93580.0,93578.0,0.0471]
[1736424062789,0.001,93580.0,93579.0,0.213723]
[1736424063022,0.15,93594.0,93580.0,0.21372]
[1736424063240,0.002,93590.0,93582.0,0.213715]
[1736424063445,0.002,93590.0,93582.0,0.26279724]
[1736424063654,0.00919668,93596.0,93586.0,0.427411]
[1736424064093,0.15,93598.0,93586.0,0.427411]
[1736424064310,0.15,93598.0,93591.0,0.213695]
[1736424064456,0.213675,93600.0,93591.0,0.213695]
[1736424064665,0.00924225,93600.0,93591.0,0.213695]
[1736424064867,0.213663,93606.0,93591.0,0.213695]
[1736424065232,0.21365,93611.0,93589.0,0.213698]
[1736424065233,0.21365,93611.0,93592.0,0.01620561]
[1736424065473,0.001,93590.0,93589.0,0.213698]
[1736424065885,0.213675,93601.0,93590.0,0.1225]
[1736424066337,0.213683,93597.0,93590.0,0.1225]
[1736424066541,0.213675,93601.0,93587.0,0.213704]
[1736424066744,0.001,93590.0,93589.0,0.001]
[1736424067167,0.001,93590.0,93587.0,0.213704]
[1736424067168,0.213675,93601.0,93587.0,0.213704]
[1736424067378,0.001,93596.0,93588.0,0.31800176]
[1736424067595,0.001,93596.0,93590.0,0.0786]
[1736424067808,0.001,93601.0,93591.0,0.00106834]
[1736424068048,0.001,93601.0,93592.0,0.213693]
[1736424068896,0.001,93601.0,93590.0,0.18289976]
[1736424068897,0.213668,93603.0,93590.0,0.18289976]
[1736424069142,0.21369,93594.0,93589.0,0.002]
[1736424069349,0.21368,93598.0,93589.0,0.005]
[1736424069558,0.21368,93598.0,93584.0,0.0793]
[1736424069559,0.213684,93596.0,93584.0,0.0793]
[1736424069763,0.21368,93598.0,93586.0,0.213707]
[1736424069974,0.358,93597.0,93586.0,0.213707]
[1736424070191,0.213684,93596.0,93586.0,0.213707]
[1736424070422,0.213684,93596.0,93585.0,0.10429976]
[1736424070642,0.213684,93596.0,93586.0,0.213707]
[1736424071047,0.213678,93599.0,93586.0,0.213707]
[1736424071263,0.0818,93604.0,93586.0,0.213707]
[1736424071264,0.213682,93597.0,93587.0,0.00764]
[1736424071685,0.213682,93597.0,93588.0,0.213702]
[1736424072320,0.213682,93597.0,93587.0,0.00764]
[1736424073181,0.213682,93597.0,93588.0,0.213702]
[1736424074270,0.213682,93597.0,93587.0,0.00764]
[1736424074723,0.2137,93590.0,93587.0,0.00764]
[1736424075359,0.2137,93590.0,93578.0,0.292823]
[1736424075577,0.2137,93590.0,93581.0,0.00764]
[1736424075784,0.2137,93590.0,93588.0,0.001]
[1736424076012,0.15133559,93589.0,93580.0,0.3256037]
[1736424076222,0.213718,93581.0,93579.0,0.00764]
[1736424076649,0.15,93589.0,93572.0,0.3256037]
[1736424076650,0.213726,93578.0,93572.0,0.3256037]
[1736424076861,0.213726,93578.0,93573.0,0.00764]
[1736424077290,0.213726,93578.0,93572.0,0.3256037]
[1736424077490,0.00133577,93577.0,93572.0,0.3256037]
[1736424077702,0.15133577,93577.0,93560.0,0.5861697]
[1736424077910,0.15133577,93577.0,93568.0,0.00764]
[1736424078129,0.15133583,93577.0,93568.0,0.00764]
[1736424078345,0.15133583,93577.0,93576.0,0.00214988]
[1736424079018,0.15133583,93577.0,93576.0,0.00014988]
[1736424079407,0.15133583,93577.0,93576.0,0.00414988]
[1736424079835,0.15,93577.0,93576.0,0.00014988]
[1736424082481,0.15133584,93577.0,93576.0,0.00014988]
[1736424084470,0.15,93577.0,93576.0,0.00014988]
[1736424085087,2.446341,93577.0,93576.0,0.00014988]
[1736424086343,2.450341,93577.0,93576.0,0.00014988]
[1736424086546,2.446341,93577.0,93576.0,0.00014988]
[1736424087590,2.450341,93577.0,93576.0,0.00014988]
[1736424087801,2.447341,93577.0,93576.0,0.00014988]
[1736424088211,2.446341,93577.0,93576.0,0.00014988]
[1736424088611,2.447341,93577.0,93576.0,0.00014988]
[1736424089376,2.451341,93577.0,93576.0,0.00014988]
[1736424089889,0.2794,93577.0,93576.0,0.00014988]
[1736424090142,2.451341,93577.0,93576.0,0.00014988]
[1736424095366,3.03774116,93577.0,93576.0,0.00014988]
[1736424097809,2.98844116,93577.0,93576.0,0.00014988]
[1736424098016,2.91334116,93577.0,93576.0,0.00014988]
[1736424101308,2.95617916,93577.0,93576.0,0.00014988]
[1736424102332,1.302,93577.0,93576.0,0.00014988]
[1736424106148,0.005,93577.0,93576.0,0.00014988]
[1736424106392,0.005,93577.0,93576.0,0.10394988]
[1736424106634,0.005,93577.0,93576.0,0.20931817]
[1736424106888,0.005,93577.0,93576.0,0.20824964]
[1736424107103,0.005,93577.0,93576.0,0.40824964]
[1736424107340,0.00133544,93604.0,93576.0,0.40824964]
[1736424107341,0.21367,93603.0,93588.0,0.213701]
[1736424107590,0.21367,93603.0,93589.0,0.13493976]
[1736424107809,0.22308434,93603.0,93589.0,0.13493976]
[1736424108056,0.22308434,93603.0,93591.0,0.023]
[1736424108294,0.00941434,93603.0,93593.0,0.0487]
[1736424108789,0.2943124,93615.0,93593.0,0.0487]
[1736424108790,0.0001704,93615.0,93595.0,0.5622887]
[1736424109023,0.00956949,93615.0,93606.0,0.023]
[1736424109265,0.0001704,93615.0,93611.0,0.213649]
[1736424109505,0.0001704,93615.0,93614.0,0.023]
[1736424109707,0.0001704,93615.0,93614.0,0.12836781]
[1736424110123,0.0001704,93615.0,93614.0,0.27626781]
[1736424110344,0.0001704,93615.0,93614.0,0.27519976]
[1736424111168,0.0001704,93615.0,93614.0,0.37919976]
[1736424111359,0.0001704,93615.0,93614.0,0.78360346]
[1736424112422,0.0001704,93615.0,93614.0,0.78460346]
[1736424112598,0.0001704,93615.0,93614.0,0.88890322]
[1736424114647,0.0001704,93615.0,93614.0,1.43370322]
[1736424117503,0.0001704,93615.0,93614.0,1.32940346]
[1736424118954,0.0001704,93615.0,93614.0,1.47840346]
[1736424119359,0.0001704,93618.0,93617.0,0.373]
[1736424119608,0.0001704,93618.0,93617.0,0.47729976]
[1736424120122,0.0001704,93618.0,93617.0,0.66974558]
[1736424120342,0.0001704,93618.0,93617.0,0.77404534]
[1736424120767,0.0011704,93618.0,93617.0,0.66969952]
[1736424121714,0.0001704,93635.0,93618.0,0.373]
[1736424121715,8e-07,93619.0,93618.0,0.373]
[1736424121962,7.1e-07,93619.0,93618.0,0.88083376]
[1736424122174,0.0001704,93635.0,93634.0,0.3002]
[1736424122406,0.00022033,93635.0,93634.0,0.48488066]
[1736424122898,3.3e-07,93635.0,93634.0,1.76628136]
[1736424123425,8.52e-05,93650.0,93649.0,1.3611667]
[1736424123629,8.52e-05,93650.0,93649.0,1.48846646]
[1736424123630,0.00013513,93650.0,93649.0,1.48846646]
[1736424125369,0.00013513,93650.0,93649.0,1.49246646]
[1736424125571,0.00013513,93650.0,93649.0,1.59676622]
[1736424125750,1.3e-07,93650.0,93649.0,1.75576622]
[1736424125960,3.3e-07,93653.0,93652.0,0.2]
[1736424126207,3.3e-07,93653.0,93652.0,1.34877078]
[1736424126412,3.3e-07,93653.0,93652.0,1.34770346]
[1736424126769,3.3e-07,93653.0,93652.0,1.45200322]
[1736424127363,0.15,93699.0,93672.0,0.3256037]
[1736424127532,0.36478313,93699.0,93683.0,0.213485]
[1736424127733,0.3639487,93699.0,93683.0,0.213485]
[1736424127934,0.213459,93695.0,93681.0,0.023]
[1736424128160,0.1504997,93699.0,93673.0,0.31780776]
[1736424128161,0.213463,93693.0,93679.0,0.00764]
[1736424128417,0.213476,93688.0,93679.0,0.07274515]
[1736424128620,0.00133425,93687.0,93679.0,0.07274515]
[1736424129673,0.15,93685.0,93679.0,0.001]
[1736424129886,0.363492,93680.0,93679.0,0.001]
[1736424130093,0.213523,93667.0,93658.0,0.00764]
[1736424130298,0.21354,93660.0,93658.0,0.00764]
[1736424130512,0.213526,93665.0,93655.0,0.3256037]
[1736424130721,0.2289,93663.0,93655.0,0.3256037]
[1736424130925,0.213547,93657.0,93655.0,0.3256037]
[1736424131766,0.213536,93661.0,93655.0,0.3256037]
[1736424131989,0.213545,93657.0,93655.0,0.3256037]
[1736424132804,0.213545,93657.0,93655.0,0.3236037]
[1736424133448,0.215545,93657.0,93655.0,0.3246037]
[1736424133798,0.213545,93657.0,93655.0,0.3246037]
[1736424134007,0.214545,93657.0,93655.0,0.3246037]
[1736424134341,0.00133466,93656.0,93655.0,0.001]
[1736424134711,0.001,93657.0,93655.0,0.001]
[1736424135117,0.001,93657.0,93649.0,0.213561]
[1736424135296,0.00987325,93661.0,93650.0,0.043477]
[1736424135502,0.15,93660.0,93650.0,0.043477]
[1736424135717,0.001,93656.0,93650.0,0.043477]
[1736424136071,0.213547,93657.0,93645.0,0.427143]
[1736424136281,0.213547,93657.0,93645.0,0.53144276]
[1736424136486,0.001,93657.0,93646.0,0.00106772]
[1736424136695,0.001,93657.0,93649.0,0.213563]
[1736424136956,0.0768,93682.0,93651.0,0.023]
[1736424137162,0.0768,93682.0,93661.0,0.213535]
[1736424137163,0.00049939,93680.0,93661.0,0.213535]
[1736424137365,0.213495,93679.0,93668.0,0.213518]
[1736424137571,0.213504,93675.0,93664.0,0.00764]
[1736424137774,0.00049939,93680.0,93664.0,0.00764]
[1736424137775,0.213516,93670.0,93664.0,0.00764]
[1736424138190,0.00133447,93669.0,93664.0,0.00764]
[1736424138398,0.213512,93672.0,93664.0,0.00764]
[1736424138601,0.15,93675.0,93664.0,0.00764]
[1736424138808,0.00049939,93680.0,93666.0,0.213524]
[1736424139157,0.002,93670.0,93664.0,0.00764]
[1736424139354,0.215516,93670.0,93664.0,0.00764]
[1736424139594,0.001,93669.0,93664.0,0.00764]
[1736424139800,0.215516,93670.0,93664.0,0.00764]
[1736424139801,0.213516,93670.0,93664.0,0.00764]
[1736424140636,0.213524,93666.0,93664.0,0.00764]
[1736424140847,0.213524,93666.0,93663.0,0.3236037]
[1736424141069,0.427049,93666.0,93663.0,0.3236037]
[1736424141314,0.213524,93666.0,93663.0,0.3236037]
[1736424141512,0.213524,93666.0,93654.0,0.21355]
[1736424141929,0.213524,93666.0,93664.0,0.002]
[1736424142161,0.001,93669.0,93664.0,0.002]
[1736424142358,0.00049939,93680.0,93664.0,0.002]
[1736424142498,0.00049939,93680.0,93664.0,0.10429976]
[1736424142701,0.00049939,93680.0,93670.0,0.213515]
[1736424142911,0.00049939,93680.0,93673.0,0.213506]
[1736424143530,0.00049939,93680.0,93676.0,0.426999]
[1736424143740,0.00049939,93680.0,93679.0,0.023]
[1736424143946,0.00449939,93680.0,93679.0,0.12836709]
[1736424144599,0.00549939,93680.0,93679.0,0.12729976]
[1736424144991,0.00449939,93680.0,93679.0,0.12729976]
[1736424145192,0.00149939,93680.0,93679.0,0.12729976]
[1736424145611,0.00549939,93680.0,93679.0,0.12729976]
[1736424145815,0.00149939,93680.0,93679.0,0.12729976]
[1736424146340,0.00549939,93680.0,93679.0,0.12729976]
[1736424146764,0.00549939,93680.0,93675.0,0.00764]
[1736424146976,0.00149939,93680.0,93676.0,0.03325956]
[1736424147138,0.00049939,93680.0,93677.0,0.03325956]
[1736424147334,0.00049939,93680.0,93675.0,0.00764]
[1736424147541,0.00149939,93680.0,93676.0,0.24676155]
[1736424147746,0.00149939,93680.0,93677.0,0.20841829]
[1736424147942,0.00149939,93680.0,93679.0,0.023]
[1736424147943,0.00049939,93680.0,93679.0,0.023]
[1736424148146,0.00951564,93693.0,93679.0,0.023]
[1736424148147,0.00951564,93693.0,93679.0,0.16056031]
[1736424148347,0.0096654,93693.0,93680.0,0.13756031]
[1736424148569,0.0096654,93693.0,93681.0,0.03326055]
[1736424148570,0.00014976,93693.0,93681.0,0.03326055]
[1736424148801,0.00014976,93693.0,93682.0,0.07681647]
[1736424148976,0.00014976,93693.0,93682.0,0.04355592]
[1736424149402,0.00014976,93693.0,93687.0,0.213474]
[1736424149645,0.00014976,93693.0,93688.0,0.213473]
[1736424149646,0.00114976,93693.0,93688.0,0.213473]
[1736424150032,0.00014976,93693.0,93688.0,0.213473]
[1736424150242,0.00014976,93693.0,93682.0,0.04355592]
[1736424150243,0.00114976,93693.0,93690.0,0.426938]
[1736424150392,0.00114976,93693.0,93692.0,0.213465]
[1736424150614,0.00114976,93693.0,93692.0,0.24671837]
[1736424150818,0.0001706,93709.0,93696.0,0.213454]
[1736424151231,0.004277,93706.0,93696.0,0.213454]
[1736424151449,0.0001706,93709.0,93697.0,0.05312168]
[1736424151655,0.213428,93708.0,93697.0,0.05312168]
[1736424151832,0.21476501,93707.0,93693.0,0.213463]
[1736424152052,0.001,93693.0,93691.0,0.213467]
[1736424152328,0.00133401,93705.0,93691.0,0.213467]
[1736424153102,0.213433,93706.0,93691.0,0.426934]
[1736424153257,0.213433,93706.0,93691.0,0.61668603]
[1736424153459,0.213433,93706.0,93693.0,0.213463]
[1736424153667,0.213438,93704.0,93692.0,0.10429976]